Workbook

Sheet Business Impact
B2: Business Impact This simple ROI calculation* will provide a high-level business case for deploying digital solutions to combat counterfeiting and diversion. There are three basic questions that can be asked to determine the applicability of an anti-counterfeiting / anti-diversion solution. They are: - How much we expect to reduce the amount of counterfeited products? - How much we expect to reduce the number of diverted products? - How much can the reduction of counterfeited and diverted products increase market share? (i.e., improvement on how brand is perceived/ valued in the marketplace)
B9: All values in ORANGE cells must be entered.
B10: Product Profile This exercise is intended for scoping out a single product.
B11: Current Overall Production
B12: How many units are produced and sold each year? | C12: 600000
B13: What is the average selling price for this product? | C13: 25
B14: Planned Increase | C14: Year 1 | D14: Year 2 | E14: Year 3
B15: How much will production increase? | C15: 0 | D15: 0.04 | E15: 0.08
B17: Expected Business Impact In this section apply an estimated % to the questions. These answers are used to build a basic ROI model.
B18: Current counterfeit and diversion rates | C18: Year 1 | D18: Year 2 | E18: Year 3
B19: Estimated counterfeit rate of product | C19: 0.07 | D19: 0.05 | E19: 0.02
B20: Estimated diversion rate of product | C20: 0.1 | D20: 0.05 | E20: 0.05
B21: Estimated % of lost sales from the diverted products; i.e., from price discounting or channel disruption | C21: 0.35 | D21: 0.25 | E21: 0.2
B22: Reduction in counterfeit/ diversion rates and increased market share AFTER solutions are deployed
B23: Estimated reduction in counterfeiting | C23: 0.2 | D23: 0.5 | E23: 0.75
B24: Estimated reduction in diversion | C24: 0.1 | D24: 0.35 | E24: 0.75
B25: Estimated increase in market share | C25: 0 | D25: 0.02 | E25: 0.03
B27: Solution Cost This includes yearly software subscription and implementation cost of your digital solution.
C28: Year 1 | D28: Year 2 | E28: Year 3
B29: Anti-Counterfeiting / Anti-Diversion Solution Cost | C29: 150000 | D29: 100000 | E29: 100000
B31: Product Volumes | C31: Year 1 | D31: Year 2 | E31: Year 3
B32: Annual Unit Volume | C32: =C12*(1+C15) -> 600000 | D32: =C12*(1+D15) -> 624000 | E32: =C12*(1+E15) -> 648000
B33: Annual Sales from Product | C33: =(C13*C12)*(1+C15) -> 15000000 | D33: =C33*(1+D15) -> 15600000 | E33: =D33*(1+E15) -> 16848000
B35: Estimated Lost Revenue | C35: Year 1 | D35: Year 2 | E35: Year 3
B36: Estimated Lost Revenue Due to Counterfeiting | C36: =(C33*C19) -> 1050000 | D36: =(D33*D19) -> 780000 | E36: =(E33*E19) -> 336960
B37: Estimated Lost Revenue Due to Diversion | C37: =(C33*C20)*C21 -> 525000 | D37: =(D33*D20)*D21 -> 195000 | E37: =(E33*E20)*E21 -> 168480
B38: Estimated Total Lost Revenue | C38: =SUM(C36:C37) -> 1575000 | D38: =SUM(D36:D37) -> 975000 | E38: =SUM(E36:E37) -> 505440
B40: Yearly Savings/ ROI | C40: Year 1 | D40: Year 2 | E40: Year 3
B41: Savings from Reduction in Counterfeiting | C41: =C36*C23 -> 210000 | D41: 390000 | E41: 252720
B42: Savings from Reduction in Diversion | C42: 52500 | D42: 68250 | E42: 126360
B43: Increased Market Share from Improved Customer Loyalty | C43: =C33*C25 -> 0 | D43: =D33*D25 -> 312000 | E43: =E33*E25 -> 505440
B44: Anti-Counterfeiting / Anti-Diversion Solution Cost | C44: =C29-(C29*2) -> -150000 | D44: =D29-(D29*2) -> -100000 | E44: =E29-(E29*2) -> -100000
B45: Annual Business Impact | C45: =SUM(C41:C44) -> 112500 | D45: =SUM(D41:D44) -> 670250 | E45: =SUM(E41:E44) -> 784520
B47: Total 3 Year Impact | C47: =SUM(C45:E45) -> 1567270
B49: *This is ROI calculator is intended to provide high-level scenarios and analysis. All calculations are hypothetical, and results depend on many variables which are not captured within this analysis.

Sheet Data Validation (hidden)
A1: foreground | C1: light on dark | E1: fuzzy | F1: uniform | G1: planar | H1: glossy | I1: deformable | K1: 1 | M1: Yes
A2: background | C2: dark on light | E2: sharp | F2: mottled | G2: curved | H2: matte | I2: non-deformable | K2: 2 | M2: No
K3: 3
K4: 4
K5: 5
